bitfinex/quotes_BTCUSD_20240723
["timestamp","ask_amount","ask_price","bid_price","bid_amount"]
[1721774448595,0.0091525,66068.0,66067.0,0.15461174]
[1721774449220,0.0091525,66068.0,66067.0,0.45733374]
[1721774449648,0.0091525,66068.0,66067.0,0.76005574]
[1721774450096,0.0091525,66068.0,66067.0,1.49402769]
[1721774450738,0.0091525,66068.0,66067.0,2.04874969]
[1721774451165,0.0091525,66068.0,66067.0,2.28497607]
[1721774451427,0.0091525,66068.0,66067.0,2.24505271]
[1721774451667,0.0081525,66068.0,66067.0,2.29794043]
[1721774452186,0.0091525,66068.0,66067.0,2.29794043]
[1721774452452,0.0081525,66068.0,66067.0,1.93076891]
[1721774452735,0.0081525,66068.0,66067.0,1.95647108]
[1721774452927,0.0091525,66068.0,66067.0,2.05247108]
[1721774453135,0.0091525,66068.0,66067.0,2.06647108]
[1721774453362,0.0081525,66068.0,66067.0,2.05747108]
[1721774453596,0.0091525,66068.0,66067.0,2.05247108]
[1721774453830,0.0091525,66068.0,66067.0,2.06647108]
[1721774454353,0.0091525,66068.0,66067.0,2.11799579]
[1721774455053,0.0091525,66068.0,66067.0,2.11999579]
[1721774455554,0.0091525,66068.0,66067.0,2.01799579]
[1721774455964,0.0091525,66068.0,66067.0,2.11999579]
[1721774456300,0.0091525,66068.0,66067.0,2.11799579]
[1721774456749,0.0091525,66068.0,66067.0,2.11999579]
[1721774456948,0.0091525,66068.0,66067.0,2.01799579]
[1721774457151,0.0091525,66068.0,66067.0,2.01799488]
[1721774457350,0.0091525,66068.0,66067.0,2.11799488]
[1721774459087,0.0091525,66068.0,66067.0,2.11799221]
[1721774459305,0.0091525,66068.0,66067.0,2.36142536]
[1721774459532,0.0091525,66068.0,66067.0,2.30853568]
[1721774460774,0.0091525,66068.0,66067.0,2.36141693]
[1721774462122,0.0091525,66068.0,66067.0,2.35941693]
[1721774462335,0.0091525,66068.0,66067.0,2.35940454]
[1721774462756,0.0091525,66068.0,66067.0,1.66373878]
[1721774462978,0.0091525,66068.0,66067.0,1.85103878]
[1721774463415,0.0091525,66068.0,66067.0,2.15376078]
[1721774464033,0.0091525,66068.0,66067.0,1.85103878]
[1721774464243,0.0091525,66068.0,66067.0,2.15376078]
[1721774464463,0.0091525,66068.0,66067.0,1.85103878]
[1721774464862,0.0091525,66068.0,66067.0,2.15376078]
[1721774465270,0.0091525,66068.0,66067.0,1.85103878]
[1721774465466,0.0091525,66068.0,66067.0,1.72534691]
[1721774465738,0.0091525,66068.0,66067.0,1.85104655]
[1721774465938,0.0091525,66068.0,66067.0,2.15376855]
[1721774466744,0.0091525,66068.0,66067.0,1.85104655]
[1721774466937,0.0091525,66068.0,66067.0,1.85304655]
[1721774467119,0.0091525,66068.0,66067.0,2.15576855]
[1721774469016,0.0091525,66068.0,66067.0,2.15576824]
[1721774469447,0.0091525,66068.0,66067.0,1.85304624]
[1721774469966,0.0091525,66068.0,66067.0,2.15576824]
[1721774470177,0.0091525,66068.0,66067.0,2.05376824]
[1721774470387,0.0091525,66068.0,66067.0,2.15576824]
[1721774470805,0.0091525,66068.0,66067.0,2.15668124]
[1721774472302,0.0091525,66068.0,66067.0,2.0546781]
[1721774473151,0.0091525,66068.0,66067.0,2.1566781]
[1721774473331,0.0091525,66068.0,66067.0,1.8519561]
[1721774474318,0.0091525,66068.0,66067.0,2.1546781]
[1721774474488,0.0091525,66068.0,66067.0,2.1566781]
[1721774475099,0.0091525,66068.0,66067.0,2.1546781]
[1721774475297,0.0091525,66068.0,66067.0,1.99338755]
[1721774475569,0.0091525,66068.0,66067.0,1.55105991]
[1721774475805,0.0091525,66068.0,66067.0,2.01819138]
[1721774476524,0.0091525,66068.0,66067.0,1.91819138]
[1721774476787,0.0091525,66068.0,66067.0,1.67675712]
[1721774477342,0.0091525,66068.0,66067.0,1.86530785]
[1721774477544,0.0091525,66068.0,66067.0,1.85789629]
[1721774477749,0.0091525,66068.0,66067.0,1.62560912]
[1721774478355,0.0091525,66068.0,66067.0,1.86704823]
[1721774478761,0.0091525,66068.0,66067.0,1.59991191]
[1721774478964,0.0091525,66068.0,66067.0,1.96705548]
[1721774479161,0.0091525,66068.0,66067.0,1.91416302]
[1721774480345,0.0091525,66068.0,66067.0,1.81416302]
[1721774481229,0.0091525,66068.0,66067.0,1.91416302]
[1721774482325,0.0091525,66068.0,66067.0,1.91416201]
[1721774484249,0.0091525,66068.0,66067.0,1.91616201]
[1721774484478,0.0091525,66068.0,66067.0,2.21888401]
[1721774484653,0.0091525,66068.0,66067.0,1.91616201]
[1721774484851,0.0091525,66068.0,66067.0,2.21888401]
[1721774485232,0.0091525,66068.0,66067.0,1.91616201]
[1721774485434,0.0091525,66068.0,66067.0,1.90463391]
[1721774485603,0.0091525,66068.0,66067.0,2.40742343]
[1721774485828,0.0091525,66068.0,66067.0,2.10270143]
[1721774486465,0.0091525,66068.0,66067.0,2.40542343]
[1721774486871,0.0091525,66068.0,66067.0,2.10270143]
[1721774487760,0.0091525,66068.0,66067.0,2.00270143]
[1721774488370,0.0091525,66068.0,66067.0,2.30542343]
[1721774488578,0.0091525,66068.0,66067.0,2.04788089]
[1721774488785,0.0091525,66068.0,66067.0,1.99117998]
[1721774488939,0.0091525,66068.0,66067.0,2.00270351]
[1721774489145,0.0091525,66068.0,66067.0,2.10270351]
[1721774489341,0.0091525,66068.0,66067.0,2.35062999]
[1721774489601,0.0091525,66068.0,66067.0,2.14790799]
[1721774491412,0.0091525,66068.0,66067.0,2.10270351]
[1721774492361,0.0091525,66068.0,66067.0,2.17055235]
[1721774493135,0.0091525,66068.0,66067.0,2.50620601]
[1721774493367,0.0091525,66068.0,66067.0,2.74108219]
[1721774493912,0.0091525,66068.0,66067.0,2.43836019]
[1721774494117,0.0091525,66068.0,66067.0,2.33836019]
[1721774494309,0.0091525,66068.0,66067.0,2.52882129]
[1721774495527,0.0091525,66068.0,66067.0,2.55160945]
[1721774495784,0.0091525,66068.0,66067.0,2.85433146]
[1721774496345,0.0091525,66068.0,66067.0,2.81628219]
[1721774496764,0.0091525,66068.0,66067.0,2.62773612]
[1721774497165,0.0091525,66068.0,66067.0,2.62973612]
[1721774498793,0.0091525,66068.0,66067.0,2.62973283]
[1721774500416,0.0091525,66068.0,66067.0,3.09964355]
[1721774500884,0.0091525,66068.0,66067.0,3.23553865]
[1721774501085,0.0091525,66068.0,66067.0,3.09964355]
[1721774501911,0.0091525,66068.0,66067.0,3.2355298]
[1721774502164,0.0091525,66068.0,66067.0,3.09964355]
[1721774502368,0.0091525,66068.0,66067.0,3.09953817]
[1721774504003,0.0091525,66068.0,66067.0,3.23539595]
[1721774504203,0.0091525,66068.0,66067.0,3.14809595]
[1721774504419,0.0091525,66068.0,66067.0,3.23339595]
[1721774504619,0.0091525,66068.0,66067.0,2.62767049]
[1721774504858,0.0091525,66068.0,66067.0,2.62967049]
[1721774505064,0.0091525,66068.0,66067.0,3.23540019]
[1721774505475,0.0091525,66068.0,66067.0,2.29405173]
[1721774505683,0.0091525,66068.0,66067.0,2.76552582]
[1721774505885,0.0091525,66068.0,66067.0,3.235395]
[1721774506305,0.0091525,66068.0,66067.0,2.76552582]
[1721774506518,0.0091525,66068.0,66067.0,3.09954175]
[1721774506726,0.0091525,66068.0,66067.0,3.16174175]
[1721774506927,0.0091525,66068.0,66067.0,3.46446375]
[1721774508809,0.0091525,66068.0,66067.0,3.46443018]
[1721774509444,0.0091525,66068.0,66067.0,3.36243018]
[1721774509648,0.0091525,66068.0,66067.0,2.82765862]
[1721774509865,0.0091525,66068.0,66067.0,2.69185309]
[1721774510071,0.0091525,66068.0,66067.0,3.46443018]
[1721774510479,0.0091525,66068.0,66067.0,2.99457509]
[1721774511095,0.0091525,66068.0,66067.0,3.46443018]
[1721774511476,0.0091525,66068.0,66067.0,2.99457509]
[1721774511810,0.0091525,66068.0,66067.0,3.46443018]
[1721774512013,0.0091525,66068.0,66067.0,2.34475591]
[1721774512227,0.0091525,66068.0,66067.0,3.46442492]
[1721774512420,0.0091525,66068.0,66067.0,3.46442242]
[1721774512633,0.0091525,66068.0,66067.0,3.12585707]
[1721774513248,0.0091525,66068.0,66067.0,3.45992441]
[1721774513476,0.0091525,66068.0,66067.0,3.12584812]
[1721774513877,0.0091525,66068.0,66067.0,2.99007257]
[1721774514139,0.0091525,66068.0,66067.0,3.45992441]
[1721774514271,0.0091525,66068.0,66067.0,2.99007257]
[1721774514454,0.0091525,66068.0,66067.0,2.9885309]
[1721774514931,0.0091525,66068.0,66067.0,3.45838274]
[1721774515144,0.0091525,66068.0,66067.0,2.9885309]
[1721774515347,0.0091525,66068.0,66067.0,3.45838274]
[1721774515560,0.0091525,66068.0,66067.0,2.98852689]
[1721774515763,0.0091525,66068.0,66067.0,3.45837815]
[1721774515979,0.0091525,66068.0,66067.0,2.68580489]
[1721774516183,0.0091525,66068.0,66067.0,2.87612016]
[1721774516383,0.0091525,66068.0,66067.0,3.15565615]
[1721774516586,0.0091525,66068.0,66067.0,2.68580489]
[1721774516819,0.0091525,66068.0,66067.0,2.98852689]
[1721774517280,0.0091525,66068.0,66067.0,3.45682866]
[1721774517484,0.0091525,66068.0,66067.0,2.98697874]
[1721774518057,0.0091525,66068.0,66067.0,3.45682865]
[1721774518331,5e-07,66068.0,66067.0,3.07796874]
[1721774518562,5e-07,66069.0,66068.0,2.055839]
[1721774518783,5e-07,66069.0,66068.0,2.39619494]
[1721774518984,5e-07,66069.0,66068.0,3.51582876]
[1721774519537,5e-07,66069.0,66068.0,3.04599064]
[1721774519982,5e-07,66069.0,66068.0,3.51544497]
[1721774520433,5e-07,66069.0,66068.0,3.04560685]
[1721774520846,0.0010005,66069.0,66068.0,3.07360685]
[1721774521006,0.0010005,66069.0,66068.0,3.10394685]
[1721774521799,5e-07,66069.0,66068.0,3.24704292]
[1721774521972,5e-07,66069.0,66068.0,3.08994685]
[1721774522176,0.0010005,66069.0,66068.0,2.61124756]
[1721774522422,0.0010005,66069.0,66068.0,3.26061899]
[1721774523461,5e-07,66069.0,66068.0,3.24661899]
[1721774523882,0.0010005,66069.0,66068.0,3.26061899]
[1721774524083,0.0010005,66069.0,66068.0,3.24168587]
[1721774526520,0.0010005,66069.0,66068.0,3.18712849]
[1721774527293,0.0010005,66069.0,66068.0,3.03922849]
[1721774528975,0.1453005,66069.0,66068.0,2.64551814]
[1721774529190,0.1453005,66069.0,66068.0,2.57572173]
[1721774529361,0.1453005,66069.0,66068.0,2.6354742]
[1721774529535,0.1453005,66069.0,66068.0,2.52238173]
[1721774529749,0.1453005,66069.0,66068.0,2.63548011]
[1721774530110,0.1443005,66069.0,66068.0,2.62148011]
[1721774530308,0.1453005,66069.0,66068.0,2.52238173]
[1721774531073,0.1443005,66069.0,66068.0,2.53138173]
[1721774531841,0.1453005,66069.0,66068.0,2.54538173]
[1721774532069,0.1453005,66069.0,66068.0,2.54541776]
[1721774533829,0.0010005,66069.0,66068.0,2.54541776]
[1721774534026,0.0010005,66069.0,66068.0,2.54634176]
[1721774534444,0.0018405,66069.0,66068.0,2.54634176]
[1721774535510,0.0018405,66069.0,66068.0,2.54637828]
[1721774536299,0.0018405,66069.0,66068.0,2.57671828]
[1721774537171,0.0008405,66069.0,66068.0,2.56271828]
[1721774537332,0.0008405,66069.0,66068.0,2.69831828]
[1721774537554,0.0018405,66069.0,66068.0,2.63591828]
[1721774537756,0.0018405,66069.0,66068.0,2.57571828]
[1721774537963,0.07865689,66069.0,66068.0,2.57571828]
[1721774538766,0.07865689,66069.0,66068.0,2.57571819]
[1721774538972,0.07865689,66069.0,66068.0,2.57571826]
[1721774542031,0.07865689,66069.0,66068.0,1.9258629]
[1721774542373,0.07865689,66069.0,66068.0,2.57571817]
[1721774545519,0.07865689,66069.0,66068.0,2.57571818]
[1721774546876,0.07865689,66069.0,66068.0,2.47767019]
[1721774547208,0.07865689,66069.0,66068.0,2.57571818]
[1721774547378,0.07865689,66069.0,66068.0,2.47767019]
[1721774547594,0.07865689,66069.0,66068.0,2.57571818]
[1721774548746,0.00145689,66069.0,66068.0,2.47767018]
[1721774549096,0.00145689,66069.0,66068.0,2.57571817]
[1721774550041,0.00145689,66069.0,66068.0,3.18142476]
[1721774550292,0.00145689,66069.0,66068.0,2.57571817]
[1721774550499,0.00145689,66069.0,66068.0,3.18142476]
[1721774551213,0.00145689,66069.0,66068.0,3.08337677]
[1721774551383,0.00145689,66069.0,66068.0,3.18142476]
[1721774551587,0.00145689,66069.0,66068.0,3.08337677]
[1721774551962,0.00145689,66069.0,66068.0,1.82781491]
[1721774552171,0.00145689,66069.0,66068.0,3.04553473]
[1721774552393,0.00145689,66069.0,66068.0,2.94748674]
[1721774552643,0.00145689,66069.0,66068.0,3.08329198]
[1721774553220,0.00145689,66069.0,66068.0,2.94748674]
[1721774553848,0.00145689,66069.0,66068.0,3.08878674]
[1721774554263,0.00145689,66069.0,66068.0,3.18683473]
[1721774554715,0.00145689,66069.0,66068.0,3.48955273]
[1721774555432,0.00145689,66069.0,66068.0,3.30101931]
[1721774555581,0.00145689,66069.0,66068.0,3.48954216]
[1721774555788,0.00145689,66069.0,66068.0,3.39149417]
[1721774556715,0.00145689,66069.0,66068.0,3.48954216]
[1721774556848,0.00145689,66069.0,66068.0,3.39149417]
[1721774557242,0.00145689,66069.0,66068.0,3.52730428]
[1721774557678,0.00145689,66069.0,66068.0,3.39149417]
[1721774557894,0.00145689,66069.0,66068.0,3.25019417]
[1721774558664,0.00145689,66069.0,66068.0,2.93599014]
[1721774558844,0.00145689,66069.0,66068.0,3.25019515]
[1721774559073,0.00145689,66069.0,66068.0,3.40729766]
[1721774559274,0.00145689,66069.0,66068.0,3.34824314]
[1721774559620,0.00145689,66069.0,66068.0,3.25019515]
[1721774560369,0.00145689,66069.0,66068.0,3.41108457]
[1721774560763,0.00145689,66069.0,66068.0,3.31303658]
[1721774560945,0.00145689,66069.0,66068.0,3.30803658]
[1721774561809,0.00145689,66069.0,66068.0,3.5631867]
[1721774562009,0.00854,66073.0,66072.0,1.62283799]
[1721774562223,0.00854,66073.0,66072.0,2.49878512]
[1721774562536,0.00854,66073.0,66072.0,2.89953311]
[1721774562926,0.00854,66073.0,66072.0,2.49878512]
[1721774563142,0.00854,66073.0,66072.0,2.61083311]
[1721774565233,0.00854,66073.0,66072.0,2.61082602]
[1721774565652,0.08864,66073.0,66072.0,2.61082602]
[1721774566438,0.08864,66073.0,66072.0,2.61965906]
[1721774566870,0.08864,66073.0,66072.0,2.52161107]
[1721774567068,0.08864,66073.0,66072.0,2.61965906]
[1721774567268,0.08864,66073.0,66072.0,2.56548675]
[1721774567830,0.08864,66073.0,66072.0,2.46743876]
[1721774568198,0.08864,66073.0,66072.0,2.56548675]
[1721774568399,0.15274,66073.0,66072.0,1.81764295]
[1721774568583,0.08864,66073.0,66072.0,2.56552099]
[1721774571756,0.08864,66073.0,66072.0,2.56551531]
[1721774571930,0.00854,66073.0,66072.0,2.70941531]
[1721774572139,0.00854,66073.0,66072.0,2.62821531]
[1721774572387,0.00854,66073.0,66072.0,2.56551531]
[1721774572758,0.00854,66073.0,66072.0,2.57951531]
[1721774574010,0.00854,66073.0,66072.0,2.48146732]
[1721774574416,0.00854,66073.0,66072.0,2.57951531]
[1721774575232,0.00854,66073.0,66072.0,2.57950526]
[1721774577812,0.00854,66073.0,66072.0,2.57950527]
[1721774578213,0.00854,66073.0,66072.0,2.49220527]
[1721774578364,0.00854,66073.0,66072.0,2.57950527]
[1721774578562,0.00854,66073.0,66072.0,2.57950526]
[1721774580167,0.00854,66073.0,66072.0,2.49220526]
[1721774580389,0.06914,66073.0,66072.0,2.57950526]
[1721774581180,0.06914,66073.0,66072.0,2.39415727]
[1721774581444,0.06914,66073.0,66072.0,2.57950526]
[1721774581661,0.06914,66073.0,66072.0,2.48145727]
[1721774581873,0.06914,66073.0,66072.0,2.48146145]
[1721774582049,0.06914,66073.0,66072.0,2.57950944]
[1721774582184,0.06914,66073.0,66072.0,2.48146145]
[1721774583704,0.06914,66073.0,66072.0,2.57950944]
[1721774585061,0.06914,66073.0,66072.0,2.45382499]
[1721774585256,0.06914,66073.0,66072.0,2.57950792]
[1721774588470,0.06914,66073.0,66072.0,2.453823]
[1721774588585,0.06914,66073.0,66072.0,2.57950549]
[1721774591744,0.06914,66073.0,66072.0,2.24389712]
[1721774591951,0.06914,66073.0,66072.0,2.57950554]
[1721774593468,0.06914,66073.0,66072.0,3.04935855]
[1721774593728,0.06914,66073.0,66072.0,2.57950554]
[1721774594485,0.06914,66073.0,66072.0,3.18529913]
[1721774595070,0.06914,66073.0,66072.0,2.24389712]
[1721774595277,0.06914,66073.0,66072.0,3.0493604]
[1721774595496,0.06914,66073.0,66072.0,3.18530438]
[1721774596199,0.06914,66073.0,66072.0,3.08725639]
[1721774596423,0.06914,66073.0,66072.0,3.0493604]
[1721774597603,0.14414,66073.0,66072.0,2.95131241]
[1721774598185,0.14414,66073.0,66072.0,3.08725639]
[1721774598430,0.14414,66073.0,66072.0,1.83164295]
[1721774598603,0.14414,66073.0,66072.0,3.08726717]
[1721774599387,0.14414,66073.0,66072.0,1.72075916]
[1721774599691,0.14414,66073.0,66072.0,0.16251582]
[1721774599692,0.45578701,66073.0,66072.0,0.16251582]
[1721774599895,0.90982901,66073.0,66072.0,0.15368278]
[1721774600074,0.90982901,66073.0,66068.0,0.000924]
[1721774600075,0.761782,66069.0,66068.0,0.000924]
[1721774600289,0.22221101,66068.0,66067.0,0.000913]
[1721774600508,0.30401101,66068.0,66067.0,0.000913]
[1721774601681,0.30401101,66068.0,66067.0,0.013913]
[1721774601890,0.60672901,66068.0,66067.0,0.013913]
[1721774602410,0.60672901,66068.0,66060.0,0.05417231]
[1721774602411,0.14765201,66061.0,66060.0,0.05417231]
[1721774602556,0.14965201,66061.0,66060.0,0.05417231]
[1721774603134,0.14765201,66061.0,66060.0,0.20554931]
[1721774603379,0.14765201,66061.0,66060.0,0.50830431]
[1721774603850,0.14765201,66061.0,66060.0,0.52830431]
[1721774603851,0.14965201,66061.0,66060.0,0.52830431]
[1721774605837,0.15165201,66061.0,66060.0,0.52830431]
[1721774606886,0.14965201,66061.0,66060.0,0.52830431]
[1721774607801,0.14965201,66061.0,66060.0,0.474132]
[1721774608825,0.14965201,66061.0,66060.0,0.776887]
[1721774609428,0.14965201,66061.0,66060.0,0.474132]
[1721774609653,0.1477,66061.0,66060.0,0.474132]
[1721774609813,0.1477,66061.0,66060.0,0.776887]
[1721774611433,0.1427,66061.0,66060.0,0.776887]
[1721774611647,0.002,66061.0,66060.0,1.29966191]
[1721774611859,0.002,66061.0,66060.0,1.39966191]
[1721774612471,0.002,66061.0,66060.0,1.70241691]
[1721774612673,0.002,66061.0,66060.0,1.39966191]
[1721774613091,0.002,66061.0,66060.0,1.70241691]
[1721774615082,0.002,66061.0,66060.0,2.06258115]
[1721774615707,0.002,66061.0,66060.0,2.36533615]
[1721774615909,0.002,66061.0,66060.0,2.06258115]
[1721774616107,0.001,66061.0,66060.0,2.05058115]
[1721774616330,0.00854,66073.0,66072.0,1.05945]
[1721774616667,0.00854,66073.0,66072.0,1.37094222]
[1721774617541,0.00854,66073.0,66072.0,1.81864222]
[1721774617743,0.00854,66073.0,66072.0,1.94434175]
[1721774617976,0.00854,66073.0,66072.0,1.91669021]
[1721774618150,0.00854,66073.0,66072.0,2.05038326]
[1721774618151,0.00954,66073.0,66072.0,2.05038326]
[1721774619290,0.00954,66073.0,66072.0,2.06438326]
[1721774619492,0.00854,66073.0,66072.0,2.05638326]
[1721774619661,0.00854,66073.0,66072.0,2.06338326]
[1721774620263,0.00854,66073.0,66072.0,2.05638326]
[1721774620680,0.00854,66073.0,66072.0,2.06738326]
[1721774621283,0.00854,66073.0,66072.0,1.94169021]
[1721774621488,0.00854,66073.0,66072.0,2.06738024]
[1721774621687,0.00854,66073.0,66072.0,1.91515994]
[1721774622252,0.00854,66073.0,66072.0,1.96515994]
[1721774623102,0.00854,66073.0,66072.0,2.01320793]
[1721774624290,0.00854,66073.0,66072.0,2.01103257]
[1721774624491,0.00854,66073.0,66072.0,2.01103282]
[1721774624984,0.00854,66073.0,66072.0,1.82568483]
[1721774625187,0.00854,66073.0,66072.0,1.81168605]
[1721774625411,0.00854,66073.0,66072.0,1.46398605]
[1721774625412,0.14404,66073.0,66072.0,1.46398605]
[1721774625613,0.14404,66073.0,66072.0,1.55128605]
[1721774625816,0.14404,66073.0,66072.0,1.43959455]
[1721774626139,0.14504,66073.0,66072.0,1.57929542]
[1721774626337,0.14404,66073.0,66072.0,1.55129542]
[1721774626541,0.14504,66073.0,66072.0,1.57929542]
[1721774626741,0.14504,66073.0,66072.0,1.45359455]
[1721774626949,0.14504,66073.0,66072.0,1.43959455]
[1721774627917,0.14404,66073.0,66072.0,1.43759455]
[1721774628122,0.14404,66073.0,66072.0,0.86875]
[1721774628123,0.14904,66073.0,66072.0,0.86875]
[1721774628323,0.15099201,66073.0,66072.0,0.86875]
[1721774628508,0.15399201,66073.0,66072.0,0.58005]
[1721774628709,0.15199201,66073.0,66072.0,0.58005]
[1721774629719,0.15399201,66073.0,66072.0,0.48005]
[1721774629976,0.15399201,66073.0,66072.0,0.026]
[1721774630771,0.15399201,66073.0,66072.0,0.014]
[1721774630985,0.00395201,66070.0,66069.0,0.151356]
[1721774631200,0.14905201,66070.0,66069.0,0.151356]
[1721774633390,0.14905201,66070.0,66069.0,0.155356]
[1721774634200,0.15005201,66070.0,66069.0,0.165356]
[1721774634809,0.15005201,66070.0,66069.0,0.61508891]
[1721774634810,0.1411,66070.0,66069.0,0.61508891]
[1721774635010,0.1411,66070.0,66069.0,0.94080191]
[1721774636097,0.1411,66070.0,66069.0,1.24351491]
[1721774641021,0.15005201,66070.0,66069.0,0.468069]
[1721774641755,0.14805201,66070.0,66069.0,0.468069]
[1721774641954,0.15005201,66070.0,66069.0,0.468069]
[1721774643688,0.15005201,66070.0,66069.0,0.165356]
[1721774644330,0.15005201,66070.0,66069.0,0.468069]
[1721774648313,0.15005201,66070.0,66069.0,0.014]
[1721774649053,0.15005201,66070.0,66069.0,0.165356]
[1721774650278,0.15005201,66070.0,66069.0,0.014]
[1721774650450,0.15005201,66070.0,66069.0,0.165356]
[1721774652682,0.14805201,66070.0,66069.0,0.468069]
[1721774653102,0.15005201,66070.0,66069.0,0.468069]
[1721774655027,0.1461,66070.0,66069.0,0.770782]
[1721774655345,0.14805201,66070.0,66069.0,0.770782]
[1721774655572,0.1461,66070.0,66069.0,0.770782]
[1721774655746,0.14805201,66070.0,66069.0,0.770782]
[1721774656359,0.14805201,66070.0,66069.0,0.89650278]
[1721774656861,0.15005201,66070.0,66069.0,0.89650278]
[1721774657071,0.15005201,66070.0,66069.0,0.165356]
[1721774657875,0.15005201,66070.0,66069.0,0.014]
[1721774657994,0.84277001,66070.0,66069.0,0.014]
[1721774658257,0.99412401,66070.0,66069.0,0.014]
[1721774658636,1.02609544,66070.0,66069.0,0.014]
[1721774659044,1.02609544,66070.0,66069.0,0.01]
[1721774659240,1.02896511,66070.0,66069.0,0.01]
[1721774659446,0.84164701,66068.0,66067.0,0.000924]
[1721774659645,0.90404701,66068.0,66067.0,0.000924]
[1721774660075,1.20676501,66068.0,66067.0,0.000924]
[1721774660285,1.38663744,66068.0,66067.0,0.000924]
[1721774660483,1.35378492,66068.0,66067.0,0.000924]
[1721774660685,1.38663936,66068.0,66067.0,0.000924]
[1721774661344,1.38663936,66068.0,66067.0,0.001924]
[1721774661645,1.38614938,66068.0,66067.0,0.000924]
[1721774661940,1.44514938,66068.0,66067.0,0.000924]
[1721774662146,1.39514938,66068.0,66067.0,0.000924]
[1721774662352,1.39214938,66068.0,66067.0,0.000924]
[1721774662706,1.40014938,66068.0,66067.0,0.001924]
[1721774663699,1.59711203,66068.0,66067.0,0.001924]
[1721774664345,1.54711203,66068.0,66067.0,0.001924]
[1721774664974,1.59711203,66068.0,66067.0,0.001924]
[1721774665481,1.54711203,66068.0,66067.0,0.001924]
[1721774665696,1.51474757,66068.0,66067.0,0.001924]
[1721774665897,1.54723125,66068.0,66067.0,0.001924]
[1721774666509,1.51474757,66068.0,66067.0,0.001924]
[1721774666711,1.36778492,66068.0,66067.0,0.001924]
[1721774667528,1.72050292,66068.0,66067.0,0.001924]
[1721774667761,1.75280633,66068.0,66067.0,0.001924]
[1721774668699,1.85280633,66068.0,66067.0,0.001924]
[1721774669089,1.8530627,66068.0,66067.0,0.001924]
[1721774671430,1.4003447,66068.0,66067.0,0.001924]
[1721774671640,1.45508492,66068.0,66067.0,0.001924]
[1721774672298,1.95450869,66068.0,66067.0,0.001924]
[1721774672500,2.08849322,66068.0,66067.0,0.001924]
[1721774672912,2.24799322,66068.0,66067.0,0.001924]
[1721774673123,2.34799322,66068.0,66067.0,0.001924]
[1721774674126,2.33999322,66068.0,66067.0,0.000924]
[1721774674422,2.33399322,66068.0,66067.0,0.000924]
[1721774674597,2.34799322,66068.0,66067.0,0.001924]
[1721774674797,2.41114083,66068.0,66067.0,0.002924]
[1721774675025,2.39714083,66068.0,66067.0,0.001924]
[1721774675376,2.41114083,66068.0,66067.0,0.002924]
[1721774675574,2.41132203,66068.0,66067.0,0.002924]
[1721774676118,2.66489242,66068.0,66067.0,0.002924]
[1721774676313,2.71489242,66068.0,66067.0,0.002924]
[1721774677496,1.29408901,66054.0,66053.0,0.000913]
[1721774677816,1.58940892,66054.0,66053.0,0.000913]
[1721774678587,1.59840892,66054.0,66053.0,0.001913]
[1721774678782,1.60340892,66054.0,66053.0,0.001913]
[1721774678986,1.75037157,66054.0,66053.0,0.001913]
[1721774680457,2.21265357,66054.0,66053.0,0.001913]
[1721774682503,2.20365357,66054.0,66053.0,0.000913]
[1721774682702,2.19865357,66054.0,66053.0,0.000913]
[1721774682905,2.20865357,66054.0,66053.0,0.001913]
[1721774683055,2.21465357,66054.0,66053.0,0.002913]
[1721774683255,2.24910172,66054.0,66053.0,0.002913]
[1721774683928,2.19910172,66054.0,66053.0,0.002913]
[1721774684130,2.24910172,66054.0,66053.0,0.002913]
[1721774686821,2.21465357,66054.0,66053.0,0.002913]
[1721774687027,2.24923207,66054.0,66053.0,0.002913]
[1721774688819,2.24932618,66054.0,66053.0,0.002913]
[1721774688948,2.65210818,66054.0,66053.0,0.002913]
[1721774690012,2.66103073,66054.0,66053.0,0.002913]
[1721774690598,2.66103073,66054.0,66053.0,0.000913]
[1721774690599,2.69417834,66054.0,66053.0,0.000913]
[1721774690796,2.70817834,66054.0,66053.0,0.000913]
[1721774690996,2.72217834,66054.0,66053.0,0.000913]
[1721774691419,2.70817834,66054.0,66053.0,0.000913]
[1721774691791,2.72217834,66054.0,66053.0,0.000913]
[1721774692052,2.75686281,66054.0,66053.0,0.000913]
[1721774692279,2.7221902,66054.0,66053.0,0.000913]
[1721774694147,2.67304259,66054.0,66053.0,0.000913]
[1721774695210,2.67316885,66054.0,66053.0,0.000913]
[1721774698747,2.67311015,66054.0,66053.0,0.000913]
[1721774699680,2.67308212,66054.0,66053.0,0.000913]
[1721774702061,2.67290274,66054.0,66053.0,0.000913]
[1721774702636,2.37012074,66054.0,66053.0,0.000913]
[1721774704843,2.32012074,66054.0,66053.0,0.000913]
[1721774705101,2.37012074,66054.0,66053.0,0.000913]
[1721774705325,2.33557612,66054.0,66053.0,0.000913]
[1721774705538,2.37023255,66054.0,66053.0,0.000913]
[1721774706938,2.28293255,66054.0,66053.0,0.000913]
[1721774707361,2.37023255,66054.0,66053.0,0.000913]
[1721774707566,2.44070859,66054.0,66053.0,0.000913]
[1721774708689,2.44108038,66054.0,66053.0,0.000913]
[1721774712015,2.44084123,66054.0,66053.0,0.000913]
[1721774714750,2.39084123,66054.0,66053.0,0.000913]
[1721774715031,0.07182121,66054.0,66053.0,0.140013]
[1721774715172,0.49112501,66054.0,66053.0,0.140013]
[1721774716177,0.47712501,66054.0,66053.0,0.140013]
[1721774716376,1.43636397,66054.0,66053.0,0.000913]
[1721774716587,1.60126397,66054.0,66053.0,0.000913]
[1721774716788,1.89304597,66054.0,66053.0,0.000913]
[1721774717012,1.82904597,66054.0,66053.0,0.000913]
[1721774717227,1.77904597,66054.0,66053.0,0.000913]
[1721774717515,1.79304597,66054.0,66053.0,0.000913]
[1721774717667,1.87904597,66054.0,66053.0,0.000913]
[1721774718050,1.79904597,66054.0,66053.0,0.000913]
[1721774718255,1.79304597,66054.0,66053.0,0.000913]
[1721774718462,1.77930191,66054.0,66053.0,0.000913]
[1721774718722,1.79130191,66054.0,66053.0,0.000913]
[1721774718905,1.80530191,66054.0,66053.0,0.000913]
[1721774719312,1.51651991,66054.0,66053.0,0.000913]
[1721774719514,1.45161991,66054.0,66053.0,0.000913]
[1721774720249,1.43761991,66054.0,66053.0,0.000913]
[1721774720449,1.45161991,66054.0,66053.0,0.000913]
[1721774721305,1.55161991,66054.0,66053.0,0.000913]
[1721774721501,1.45161991,66054.0,66053.0,0.000913]
[1721774721738,1.42270492,66054.0,66053.0,0.000913]
[1721774721929,1.4512608,66054.0,66053.0,0.000913]
[1721774722332,0.83446289,66054.0,66053.0,0.142613]
[1721774722506,0.80590701,66054.0,66053.0,0.142613]
[1721774723317,0.79190701,66054.0,66053.0,0.142613]